[Event "Titled Tuesday Blitz February 07 Early 2023"]
[White "Grigorjev, Iljya"]
[Black "Harshavardhan G B"]
[WhiteFideId "24159565"]
[BlackFideId "25059009"]
[WhiteElo "2426"]
[BlackElo "2408"]
[Result "1/2-1/2"]
[Round "06"]
[TimeControl "180+2"]
[Date "2023.02.07"]
[WhiteClock "0:00:15"]
[BlackClock "0:00:12"]

1. Nf3 {[%clk 0:03:00]}  Nf6 {[%clk 0:02:59]} 2. g3 {[%clk 0:03:01]}  g6 {[%clk 0:02:57]} 3. Bg2 {[%clk 0:03:01]}  Bg7 {[%clk 0:02:57]} 4. O-O {[%clk 0:03:02]}  O-O {[%clk 0:02:58]} 5. d4 {[%clk 0:03:02]}  d5 {[%clk 0:02:57]} 6. c4 {[%clk 0:03:03]}  c6 {[%clk 0:02:57]} 7. cxd5 {[%clk 0:03:03]}  cxd5 {[%clk 0:02:57]} 8. Ne5 {[%clk 0:03:03]}  Ng4 {[%clk 0:02:56]} 9. Nxg4 {[%clk 0:02:48]}  Bxg4 {[%clk 0:02:57]} 10. h3 {[%clk 0:02:45]}  Bf5 {[%clk 0:02:52]} 11. Nc3 {[%clk 0:02:43]}  Nc6 {[%clk 0:02:48]} 12. Nxd5 {[%clk 0:02:43]}  Bxd4 {[%clk 0:02:44]} 13. Bg5 {[%clk 0:02:22]}  Bg7 {[%clk 0:02:34]} 14. Rc1 {[%clk 0:02:14]}  h6 {[%clk 0:02:31]} 15. Bf4 {[%clk 0:01:46]}  Bxb2 {[%clk 0:02:21]} 16. Bxh6 {[%clk 0:01:45]}  Bxc1 {[%clk 0:02:17]} 17. Qxc1 {[%clk 0:01:31]}  Re8 {[%clk 0:02:08]} 18. Qb2 {[%clk 0:01:29]}  e5 {[%clk 0:02:05]} 19. Qxb7 {[%clk 0:01:22]}  Nd4 {[%clk 0:02:03]} 20. e3 {[%clk 0:01:21]}  Ne2+ {[%clk 0:01:59]} 21. Kh2 {[%clk 0:01:21]}  Rb8 {[%clk 0:01:58]} 22. Qxa7 {[%clk 0:01:18]}  e4 {[%clk 0:01:49]} 23. Rd1 {[%clk 0:00:57]}  Ra8 {[%clk 0:01:19]} 24. Qc7 {[%clk 0:00:40]}  Kh7 {[%clk 0:00:40]} 25. Qxd8 {[%clk 0:00:40]}  Rexd8 {[%clk 0:00:35]} 26. Bg5 {[%clk 0:00:40]}  Rdb8 {[%clk 0:00:34]} 27. g4 {[%clk 0:00:35]}  Be6 {[%clk 0:00:34]} 28. Nf6+ {[%clk 0:00:36]}  Kg7 {[%clk 0:00:33]} 29. Nxe4 {[%clk 0:00:36]}  Rxa2 {[%clk 0:00:32]} 30. Bf6+ {[%clk 0:00:36]}  Kg8 {[%clk 0:00:30]} 31. Ng5 {[%clk 0:00:34]}  Bc4 {[%clk 0:00:23]} 32. Bf3 {[%clk 0:00:28]}  Ra6 {[%clk 0:00:19]} 33. Be5 {[%clk 0:00:26]}  Re8 {[%clk 0:00:19]} 34. Bb2 {[%clk 0:00:23]}  Ra2 {[%clk 0:00:19]} 35. Rd2 {[%clk 0:00:24]}  Rb8 {[%clk 0:00:16]} 36. Bxe2 {[%clk 0:00:09]}  Bxe2 {[%clk 0:00:17]} 37. Rxe2 {[%clk 0:00:10]}  Raxb2 {[%clk 0:00:16]} 38. Rxb2 {[%clk 0:00:10]}  Rxb2 {[%clk 0:00:16]} 39. Kg3 {[%clk 0:00:11]}  Kg7 {[%clk 0:00:16]} 40. Nf3 {[%clk 0:00:11]}  f6 {[%clk 0:00:16]} 41. Nd4 {[%clk 0:00:12]}  Ra2 {[%clk 0:00:16]} 42. h4 {[%clk 0:00:12]}  Kf7 {[%clk 0:00:16]} 43. Nf3 {[%clk 0:00:11]}  Ke6 {[%clk 0:00:16]} 44. g5 {[%clk 0:00:12]}  f5 {[%clk 0:00:15]} 45. Ng1 {[%clk 0:00:09]}  Ra4 {[%clk 0:00:15]} 46. Nh3 {[%clk 0:00:10]}  Rg4+ {[%clk 0:00:14]} 47. Kf3 {[%clk 0:00:10]}  Rxh4 {[%clk 0:00:15]} 48. Nf4+ {[%clk 0:00:11]}  Kf7 {[%clk 0:00:15]} 49. Nd3 {[%clk 0:00:11]}  Re4 {[%clk 0:00:15]} 50. Nf4 {[%clk 0:00:09]}  Kg7 {[%clk 0:00:15]} 51. Kg3 {[%clk 0:00:09]}  Ra4 {[%clk 0:00:15]} 52. Kf3 {[%clk 0:00:09]}  Ra1 {[%clk 0:00:15]} 53. Ne2 {[%clk 0:00:08]}  Kf7 {[%clk 0:00:15]} 54. Ng3 {[%clk 0:00:07]}  Rg1 {[%clk 0:00:15]} 55. Kf4 {[%clk 0:00:07]}  Ra1 {[%clk 0:00:15]} 56. Kf3 {[%clk 0:00:08]}  Ra4 {[%clk 0:00:15]} 57. e4 {[%clk 0:00:02]}  fxe4+ {[%clk 0:00:14]} 58. Nxe4 {[%clk 0:00:03]}  Rb4 {[%clk 0:00:14]} 59. Kf4 {[%clk 0:00:04]}  Ke6 {[%clk 0:00:14]} 60. f3 {[%clk 0:00:04]}  Ra4 {[%clk 0:00:14]} 61. Ke3 {[%clk 0:00:05]}  Ke5 {[%clk 0:00:14]} 62. Ng3 {[%clk 0:00:04]}  Ra3+ {[%clk 0:00:14]} 63. Kf2 {[%clk 0:00:05]}  Kf4 {[%clk 0:00:14]} 64. Ne2+ {[%clk 0:00:05]}  Kxg5 {[%clk 0:00:14]} 65. Kg3 {[%clk 0:00:06]}  Kf5 {[%clk 0:00:14]} 66. Nd4+ {[%clk 0:00:06]}  Kf6 {[%clk 0:00:13]} 67. Ne2 {[%clk 0:00:05]}  Ra4 {[%clk 0:00:14]} 68. Ng1 {[%clk 0:00:05]}  Rc4 {[%clk 0:00:14]} 69. Nh3 {[%clk 0:00:05]}  Kf5 {[%clk 0:00:14]} 70. Nf2 {[%clk 0:00:05]}  Rc3 {[%clk 0:00:14]} 71. Ng4 {[%clk 0:00:06]}  Ra3 {[%clk 0:00:13]} 72. Nf2 {[%clk 0:00:06]}  Ke5 {[%clk 0:00:13]} 73. Ng4+ {[%clk 0:00:06]}  Kd4 {[%clk 0:00:14]} 74. Kf4 {[%clk 0:00:06]}  Ra5 {[%clk 0:00:13]} 75. Nf2 {[%clk 0:00:03]}  Rf5+ {[%clk 0:00:13]} 76. Kg3 {[%clk 0:00:03]}  Ke3 {[%clk 0:00:13]} 77. Ng4+ {[%clk 0:00:04]}  Ke2 {[%clk 0:00:13]} 78. Nh2 {[%clk 0:00:05]}  Rg5+ {[%clk 0:00:13]} 79. Kf4 {[%clk 0:00:05]}  Rf5+ {[%clk 0:00:11]} 80. Kg3 {[%clk 0:00:05]}  Rf8 {[%clk 0:00:10]} 81. Kg4 {[%clk 0:00:05]}  Kf2 {[%clk 0:00:10]} 82. Kg5 {[%clk 0:00:04]}  Kg3 {[%clk 0:00:10]} 83. Ng4 {[%clk 0:00:04]}  Rxf3 {[%clk 0:00:11]} 84. Nf6 {[%clk 0:00:03]}  Ra3 {[%clk 0:00:10]} 85. Kxg6 {[%clk 0:00:03]}  Kf4 {[%clk 0:00:10]} 86. Nh5+ {[%clk 0:00:04]}  Ke5 {[%clk 0:00:10]} 87. Kg5 {[%clk 0:00:04]}  Ra1 {[%clk 0:00:10]} 88. Ng3 {[%clk 0:00:05]}  Ra4 {[%clk 0:00:10]} 89. Nh5 {[%clk 0:00:05]}  Ra8 {[%clk 0:00:10]} 90. Kg4 {[%clk 0:00:04]}  Rg8+ {[%clk 0:00:10]} 91. Kf3 {[%clk 0:00:04]}  Rg6 {[%clk 0:00:09]} 92. Ng3 {[%clk 0:00:04]}  Rg7 {[%clk 0:00:09]} 93. Nh5 {[%clk 0:00:04]}  Rd7 {[%clk 0:00:09]} 94. Ng3 {[%clk 0:00:04]}  Rd4 {[%clk 0:00:09]} 95. Ne2 {[%clk 0:00:04]}  Ra4 {[%clk 0:00:08]} 96. Ng3 {[%clk 0:00:04]}  Kf6 {[%clk 0:00:08]} 97. Ne4+ {[%clk 0:00:05]}  Kf5 {[%clk 0:00:08]} 98. Ng3+ {[%clk 0:00:05]}  Ke5 {[%clk 0:00:07]} 99. Ne2 {[%clk 0:00:05]}  Ra3+ {[%clk 0:00:07]} 100. Kg4 {[%clk 0:00:06]}  Ke4 {[%clk 0:00:07]} 101. Ng3+ {[%clk 0:00:06]}  Ke3 {[%clk 0:00:07]} 102. Nf5+ {[%clk 0:00:06]}  Kf2 {[%clk 0:00:08]} 103. Kf4 {[%clk 0:00:07]}  Ra4+ {[%clk 0:00:09]} 104. Ke5 {[%clk 0:00:08]}  Kf3 {[%clk 0:00:09]} 105. Nd4+ {[%clk 0:00:08]}  Kg4 {[%clk 0:00:09]} 106. Ne6 {[%clk 0:00:09]}  Ra5+ {[%clk 0:00:10]} 107. Ke4 {[%clk 0:00:09]}  Ra1 {[%clk 0:00:09]} 108. Ke5 {[%clk 0:00:10]}  Re1+ {[%clk 0:00:10]} 109. Kf6 {[%clk 0:00:10]}  Kf3 {[%clk 0:00:10]} 110. Kf5 {[%clk 0:00:10]}  Rh1 {[%clk 0:00:09]} 111. Ng5+ {[%clk 0:00:11]}  Ke3 {[%clk 0:00:09]} 112. Ne6 {[%clk 0:00:12]}  Rh5+ {[%clk 0:00:09]} 113. Kg4 {[%clk 0:00:12]}  Rh8 {[%clk 0:00:10]} 114. Kf5 {[%clk 0:00:12]}  Re8 {[%clk 0:00:10]} 115. Ke5 {[%clk 0:00:13]}  Ra8 {[%clk 0:00:10]} 116. Kd5 {[%clk 0:00:13]}  Ra5+ {[%clk 0:00:10]} 117. Nc5 {[%clk 0:00:14]}  Ra8 {[%clk 0:00:09]} 118. Ke6 {[%clk 0:00:14]}  Rc8 {[%clk 0:00:09]} 119. Nd7 {[%clk 0:00:15]}  Kd4 {[%clk 0:00:09]} 120. Nf6 {[%clk 0:00:14]}  Rc6+ {[%clk 0:00:09]} 121. Kf5 {[%clk 0:00:15]}  Rc5+ {[%clk 0:00:09]} 122. Kf4 {[%clk 0:00:15]}  Rc1 {[%clk 0:00:09]} 123. Kf5 {[%clk 0:00:15]}  Re1 {[%clk 0:00:10]} 124. Ng4 {[%clk 0:00:15]}  Rf1+ {[%clk 0:00:10]} 125. Ke6 {[%clk 0:00:15]}  Ke4 {[%clk 0:00:10]} 126. Nf6+ {[%clk 0:00:15]}  Kd4 {[%clk 0:00:10]} 127. Ng4 {[%clk 0:00:16]}  Ra1 {[%clk 0:00:11]} 128. Nf6 {[%clk 0:00:16]}  Ra5 {[%clk 0:00:11]} 129. Ng4 {[%clk 0:00:16]}  Rb5 {[%clk 0:00:12]} 130. Nf6 {[%clk 0:00:16]}  Rg5 {[%clk 0:00:12]} 131. Nd7 {[%clk 0:00:15]}  Rd5 {[%clk 0:00:12]} 132. Nf6 {[%clk 0:00:15]}  Re5+ {[%clk 0:00:12]} 133. Kd6 {[%clk 0:00:15]}  Re1 {[%clk 0:00:13]} 134. Nd7 {[%clk 0:00:16]}  Ra1 {[%clk 0:00:12]} 135. Ke6 {[%clk 0:00:15]} 1/2-1/2


[Site "https://www.chess.com"]

[Event "Titled Tuesday Blitz February 07 Early 2023"]
[White "Assaubayeva, Bibisara"]
[Black "Ivic, Velimir"]
[WhiteFideId "13708694"]
[BlackFideId "950122"]
[WhiteElo "2464"]
[BlackElo "2595"]
[Result "1-0"]
[Round "06"]
[TimeControl "180+2"]
[Date "2023.02.07"]
[WhiteClock "0:00:09"]
[BlackClock "0:00:01"]

1. e4 {[%clk 0:03:00]}  c5 {[%clk 0:02:59]} 2. Nf3 {[%clk 0:03:00]}  Nc6 {[%clk 0:03:00]} 3. Nc3 {[%clk 0:02:55]}  g6 {[%clk 0:02:59]} 4. d4 {[%clk 0:02:47]}  cxd4 {[%clk 0:02:59]} 5. Nxd4 {[%clk 0:02:47]}  Bg7 {[%clk 0:03:00]} 6. Be3 {[%clk 0:02:47]}  Nf6 {[%clk 0:03:01]} 7. Nxc6 {[%clk 0:02:46]}  bxc6 {[%clk 0:02:58]} 8. e5 {[%clk 0:02:46]}  Ng8 {[%clk 0:02:59]} 9. f4 {[%clk 0:02:43]}  f6 {[%clk 0:02:57]} 10. Bd4 {[%clk 0:02:40]}  Qa5 {[%clk 0:02:50]} 11. Qd2 {[%clk 0:02:39]}  fxe5 {[%clk 0:02:38]} 12. fxe5 {[%clk 0:02:38]}  Bxe5 {[%clk 0:02:36]} 13. Qg5 {[%clk 0:02:38]}  d6 {[%clk 0:02:27]} 14. Bxe5 {[%clk 0:02:36]}  dxe5 {[%clk 0:02:04]} 15. O-O-O {[%clk 0:02:32]}  Nf6 {[%clk 0:01:57]} 16. Bc4 {[%clk 0:02:32]}  Qb4 {[%clk 0:01:57]} 17. Bb3 {[%clk 0:01:51]}  Bg4 {[%clk 0:01:46]} 18. Rdf1 {[%clk 0:01:41]}  Qd4 {[%clk 0:01:14]} 19. Kb1 {[%clk 0:01:26]}  O-O-O {[%clk 0:01:06]} 20. h3 {[%clk 0:01:23]}  Bf5 {[%clk 0:01:04]} 21. g4 {[%clk 0:01:18]}  Be4 {[%clk 0:00:59]} 22. Rhg1 {[%clk 0:01:08]}  Kb8 {[%clk 0:00:44]} 23. Rd1 {[%clk 0:01:06]}  Qc5 {[%clk 0:00:43]} 24. Rde1 {[%clk 0:01:05]}  Rd4 {[%clk 0:00:40]} 25. Qe3 {[%clk 0:01:00]}  Rhd8 {[%clk 0:00:36]} 26. Qe2 {[%clk 0:00:51]}  Rd2 {[%clk 0:00:22]} 27. Qa6 {[%clk 0:00:41]}  Bf3 {[%clk 0:00:16]} 28. a3 {[%clk 0:00:38]}  e4 {[%clk 0:00:16]} 29. g5 {[%clk 0:00:37]}  Ne8 {[%clk 0:00:11]} 30. Rgf1 {[%clk 0:00:35]}  Nc7 {[%clk 0:00:11]} 31. Qa4 {[%clk 0:00:32]}  R8d4 {[%clk 0:00:10]} 32. Nxe4 {[%clk 0:00:18]}  Bxe4 {[%clk 0:00:10]} 33. Rxe4 {[%clk 0:00:12]}  Rxa4 {[%clk 0:00:09]} 34. Bxa4 {[%clk 0:00:12]}  a5 {[%clk 0:00:08]} 35. Rfe1 {[%clk 0:00:11]}  Nd5 {[%clk 0:00:08]} 36. Re6 {[%clk 0:00:10]}  Qb6 {[%clk 0:00:05]} 37. Rxc6 {[%clk 0:00:10]}  Qb7 {[%clk 0:00:05]} 38. Rc5 {[%clk 0:00:10]}  Ka7 {[%clk 0:00:02]} 39. Rxa5+ {[%clk 0:00:09]}  Kb8 {[%clk 0:00:01]} 40. Rb5 {[%clk 0:00:09]} 1-0


[Site "https://www.chess.com"]

[Event "Titled Tuesday Blitz February 07 Early 2023"]
[White "Perez Ponsa, Federico"]
[Black "Bilych, Olexiy"]
[WhiteFideId "117927"]
[BlackFideId "14156504"]
[WhiteElo "2532"]
[BlackElo "2441"]
[Result "1-0"]
[Round "06"]
[TimeControl "180+2"]
[Date "2023.02.07"]
[WhiteClock "0:00:45"]
[BlackClock "0:00:01"]

1. e4 {[%clk 0:02:58]}  c5 {[%clk 0:02:59]} 2. Nf3 {[%clk 0:02:59]}  d6 {[%clk 0:03:00]} 3. d4 {[%clk 0:02:59]}  cxd4 {[%clk 0:03:00]} 4. Nxd4 {[%clk 0:03:00]}  Nf6 {[%clk 0:03:01]} 5. Nc3 {[%clk 0:03:01]}  a6 {[%clk 0:03:01]} 6. Be2 {[%clk 0:03:01]}  e5 {[%clk 0:03:00]} 7. Nb3 {[%clk 0:03:02]}  Be7 {[%clk 0:02:58]} 8. Bg5 {[%clk 0:02:54]}  Be6 {[%clk 0:02:55]} 9. Bxf6 {[%clk 0:02:54]}  Bxf6 {[%clk 0:02:56]} 10. Qd3 {[%clk 0:02:55]}  Qc7 {[%clk 0:02:44]} 11. O-O-O {[%clk 0:02:53]}  Be7 {[%clk 0:02:40]} 12. g3 {[%clk 0:02:53]}  Nd7 {[%clk 0:02:39]} 13. f4 {[%clk 0:02:53]}  Rc8 {[%clk 0:02:36]} 14. f5 {[%clk 0:02:35]}  Bc4 {[%clk 0:02:12]} 15. Qxc4 {[%clk 0:02:32]}  Qxc4 {[%clk 0:02:13]} 16. Bxc4 {[%clk 0:02:33]}  Rxc4 {[%clk 0:02:13]} 17. Na5 {[%clk 0:02:33]}  Rxc3 {[%clk 0:01:15]} 18. bxc3 {[%clk 0:02:33]}  Nc5 {[%clk 0:01:15]} 19. Rhe1 {[%clk 0:02:31]}  Bg5+ {[%clk 0:00:48]} 20. Kb2 {[%clk 0:02:27]}  Ke7 {[%clk 0:00:48]} 21. h4 {[%clk 0:02:25]}  Bh6 {[%clk 0:00:43]} 22. Nc4 {[%clk 0:02:21]}  Rd8 {[%clk 0:00:17]} 23. Nb6 {[%clk 0:02:19]}  g6 {[%clk 0:00:15]} 24. g4 {[%clk 0:02:14]}  gxf5 {[%clk 0:00:14]} 25. g5 {[%clk 0:02:06]}  Bg7 {[%clk 0:00:12]} 26. exf5 {[%clk 0:02:07]}  f6 {[%clk 0:00:12]} 27. Nd5+ {[%clk 0:02:01]}  Kf7 {[%clk 0:00:13]} 28. Rg1 {[%clk 0:02:01]}  Rc8 {[%clk 0:00:10]} 29. g6+ {[%clk 0:01:56]}  hxg6 {[%clk 0:00:10]} 30. Rxg6 {[%clk 0:01:56]}  Na4+ {[%clk 0:00:09]} 31. Kb3 {[%clk 0:01:56]}  Nc5+ {[%clk 0:00:09]} 32. Ka3 {[%clk 0:01:47]}  Ne4 {[%clk 0:00:09]} 33. Rdg1 {[%clk 0:01:46]}  Rg8 {[%clk 0:00:08]} 34. h5 {[%clk 0:01:40]}  Ng5 {[%clk 0:00:09]} 35. h6 {[%clk 0:01:34]}  Bh8 {[%clk 0:00:09]} 36. R1xg5 {[%clk 0:01:20]}  fxg5 {[%clk 0:00:09]} 37. Rxd6 {[%clk 0:01:20]}  e4 {[%clk 0:00:06]} 38. Rd7+ {[%clk 0:01:17]}  Ke8 {[%clk 0:00:06]} 39. Re7+ {[%clk 0:01:05]}  Kf8 {[%clk 0:00:06]} 40. Rxe4 {[%clk 0:01:00]}  g4 {[%clk 0:00:06]} 41. Nf4 {[%clk 0:00:51]}  Bxc3 {[%clk 0:00:01]} 42. Ng6+ {[%clk 0:00:49]}  Kf7 {[%clk 0:00:01]} 43. Kb3 {[%clk 0:00:49]}  Rc8 {[%clk 0:00:01]} 44. Rxg4 {[%clk 0:00:47]}  Bf6 {[%clk 0:00:01]} 45. Rc4 {[%clk 0:00:45]} 1-0


[Site "https://www.chess.com"]

[Event "Titled Tuesday Blitz February 07 Early 2023"]
[White "Pakleza, Zbigniew"]
[Black "Lianes Garcia, Marcos"]
[WhiteFideId "1119290"]
[BlackFideId "32060777"]
[WhiteElo "2494"]
[BlackElo "2411"]
[Result "1-0"]
[Round "06"]
[TimeControl "180+2"]
[Date "2023.02.07"]
[WhiteClock "0:02:39"]
[BlackClock "0:02:50"]

1. d4 {[%clk 0:03:00]}  g6 {[%clk 0:02:59]} 2. Nf3 {[%clk 0:03:01]}  Bg7 {[%clk 0:02:59]} 3. Bf4 {[%clk 0:03:01]}  c5 {[%clk 0:02:59]} 4. c3 {[%clk 0:03:01]}  d5 {[%clk 0:02:58]} 5. e3 {[%clk 0:03:02]}  Nf6 {[%clk 0:02:58]} 6. Nbd2 {[%clk 0:03:02]}  O-O {[%clk 0:02:58]} 7. Be2 {[%clk 0:03:03]}  cxd4 {[%clk 0:02:58]} 8. cxd4 {[%clk 0:03:02]}  Nc6 {[%clk 0:02:58]} 9. O-O {[%clk 0:03:01]}  Bf5 {[%clk 0:02:58]} 10. Qb3 {[%clk 0:02:57]}  Na5 {[%clk 0:02:58]} 11. Qa3 {[%clk 0:02:53]}  Re8 {[%clk 0:02:58]} 12. Rfc1 {[%clk 0:02:51]}  Bf8 {[%clk 0:02:57]} 13. Bc7 {[%clk 0:02:48]}  e5 {[%clk 0:02:50]} 14. Qxa5 {[%clk 0:02:39]} 1-0


[Site "https://www.chess.com"]

[Event "Titled Tuesday Blitz February 07 Early 2023"]
[White "Avinash, Ramesh"]
[Black "Panesso Rivera, Henry"]
[WhiteFideId "45018340"]
[BlackFideId "4402707"]
[WhiteElo "2319"]
[BlackElo "2342"]
[Result "1-0"]
[Round "06"]
[TimeControl "180+2"]
[Date "2023.02.07"]
[WhiteClock "0:00:48"]
[BlackClock "0:00:07"]

1. e4 {[%clk 0:02:55]}  d6 {[%clk 0:02:59]} 2. Nc3 {[%clk 0:02:55]}  g6 {[%clk 0:02:58]} 3. h4 {[%clk 0:02:55]}  Nf6 {[%clk 0:02:56]} 4. Be2 {[%clk 0:02:50]}  h5 {[%clk 0:02:54]} 5. d4 {[%clk 0:02:47]}  c6 {[%clk 0:02:54]} 6. Nh3 {[%clk 0:02:47]}  Bxh3 {[%clk 0:02:52]} 7. Rxh3 {[%clk 0:02:47]}  Nbd7 {[%clk 0:02:52]} 8. Bg5 {[%clk 0:02:46]}  Qa5 {[%clk 0:02:49]} 9. Qd2 {[%clk 0:02:39]}  Bg7 {[%clk 0:02:47]} 10. Kf1 {[%clk 0:02:30]}  b5 {[%clk 0:02:43]} 11. Bd3 {[%clk 0:02:26]}  Qc7 {[%clk 0:02:35]} 12. Kg1 {[%clk 0:02:25]}  a6 {[%clk 0:02:33]} 13. a3 {[%clk 0:02:21]}  c5 {[%clk 0:02:33]} 14. dxc5 {[%clk 0:02:18]}  Qxc5 {[%clk 0:02:20]} 15. Re1 {[%clk 0:02:11]}  Rc8 {[%clk 0:02:17]} 16. Nd5 {[%clk 0:02:03]}  e6 {[%clk 0:02:06]} 17. Nxf6+ {[%clk 0:01:55]}  Nxf6 {[%clk 0:02:07]} 18. e5 {[%clk 0:01:53]}  dxe5 {[%clk 0:02:04]} 19. Bxg6 {[%clk 0:01:49]}  Nd5 {[%clk 0:01:27]} 20. Be4 {[%clk 0:01:41]}  f6 {[%clk 0:01:13]} 21. Bg6+ {[%clk 0:01:40]}  Ke7 {[%clk 0:01:12]} 22. b4 {[%clk 0:01:10]}  Qc4 {[%clk 0:00:57]} 23. Be3 {[%clk 0:01:08]}  Nxe3 {[%clk 0:00:55]} 24. Qxe3 {[%clk 0:01:07]}  f5 {[%clk 0:00:53]} 25. Bxf5 {[%clk 0:00:54]}  exf5 {[%clk 0:00:48]} 26. Qg5+ {[%clk 0:00:54]}  Kf7 {[%clk 0:00:33]} 27. Qxf5+ {[%clk 0:00:51]}  Kg8 {[%clk 0:00:29]} 28. Rg3 {[%clk 0:00:51]}  Rf8 {[%clk 0:00:24]} 29. Rxg7+ {[%clk 0:00:50]}  Kxg7 {[%clk 0:00:24]} 30. Qg5+ {[%clk 0:00:50]}  Kf7 {[%clk 0:00:15]} 31. Rxe5 {[%clk 0:00:49]}  Qg4 {[%clk 0:00:07]} 32. Re7# {[%clk 0:00:48]} 1-0


[Site "https://www.chess.com"]

[Event "Titled Tuesday Blitz February 07 Early 2023"]
[White "Bok, Benjamin"]
[Black "Akobian, Varuzhan"]
[WhiteFideId "1017063"]
[BlackFideId "13300580"]
[WhiteElo "2607"]
[BlackElo "2591"]
[Result "1-0"]
[Round "06"]
[TimeControl "180+2"]
[Date "2023.02.07"]
[WhiteClock "0:00:40"]
[BlackClock "0:00:04"]

1. c4 {[%clk 0:03:00]}  e6 {[%clk 0:02:59]} 2. g3 {[%clk 0:03:00]}  d5 {[%clk 0:02:59]} 3. Bg2 {[%clk 0:03:01]}  Nf6 {[%clk 0:02:59]} 4. Nf3 {[%clk 0:03:01]}  dxc4 {[%clk 0:02:59]} 5. Qa4+ {[%clk 0:03:01]}  Bd7 {[%clk 0:02:58]} 6. Qxc4 {[%clk 0:03:02]}  c5 {[%clk 0:02:58]} 7. d4 {[%clk 0:03:01]}  Nc6 {[%clk 0:02:46]} 8. O-O {[%clk 0:02:34]}  cxd4 {[%clk 0:02:45]} 9. Nxd4 {[%clk 0:02:35]}  Rc8 {[%clk 0:02:45]} 10. Nc3 {[%clk 0:02:34]}  a6 {[%clk 0:02:41]} 11. Rd1 {[%clk 0:02:21]}  Nxd4 {[%clk 0:02:29]} 12. Qxd4 {[%clk 0:02:22]}  Bc5 {[%clk 0:02:29]} 13. Qh4 {[%clk 0:02:18]}  Qb6 {[%clk 0:02:28]} 14. Bg5 {[%clk 0:02:13]}  Be7 {[%clk 0:01:30]} 15. Ne4 {[%clk 0:01:42]}  Nxe4 {[%clk 0:01:21]} 16. Bxe4 {[%clk 0:01:43]}  Bxg5 {[%clk 0:01:07]} 17. Qxg5 {[%clk 0:01:44]}  Qxb2 {[%clk 0:00:52]} 18. Rab1 {[%clk 0:01:43]}  Qf6 {[%clk 0:00:49]} 19. Qxf6 {[%clk 0:01:41]}  gxf6 {[%clk 0:00:48]} 20. Bxb7 {[%clk 0:01:33]}  Rc7 {[%clk 0:00:44]} 21. Bxa6 {[%clk 0:01:33]}  Ke7 {[%clk 0:00:44]} 22. Bb5 {[%clk 0:01:29]}  Bxb5 {[%clk 0:00:36]} 23. Rxb5 {[%clk 0:01:30]}  Ra8 {[%clk 0:00:36]} 24. Rd2 {[%clk 0:01:28]}  f5 {[%clk 0:00:34]} 25. Rb4 {[%clk 0:01:19]}  Kf6 {[%clk 0:00:28]} 26. a4 {[%clk 0:01:14]}  Rc1+ {[%clk 0:00:27]} 27. Kg2 {[%clk 0:01:14]}  Ra1 {[%clk 0:00:28]} 28. Rdd4 {[%clk 0:01:09]}  h6 {[%clk 0:00:23]} 29. e3 {[%clk 0:01:07]}  Ra2 {[%clk 0:00:23]} 30. Rf4 {[%clk 0:01:04]}  Kg6 {[%clk 0:00:22]} 31. g4 {[%clk 0:01:02]}  fxg4 {[%clk 0:00:22]} 32. Rxg4+ {[%clk 0:01:03]}  Kf6 {[%clk 0:00:20]} 33. Rbf4+ {[%clk 0:00:55]}  Ke7 {[%clk 0:00:20]} 34. Rg7 {[%clk 0:00:56]}  Rf8 {[%clk 0:00:19]} 35. Rh7 {[%clk 0:00:56]}  h5 {[%clk 0:00:12]} 36. Rxh5 {[%clk 0:00:53]}  f5 {[%clk 0:00:12]} 37. Rh7+ {[%clk 0:00:50]}  Kf6 {[%clk 0:00:11]} 38. Rh6+ {[%clk 0:00:50]}  Ke5 {[%clk 0:00:10]} 39. Rb4 {[%clk 0:00:46]}  Rd8 {[%clk 0:00:08]} 40. Rb5+ {[%clk 0:00:40]}  Rd5 {[%clk 0:00:08]} 41. Rxd5+ {[%clk 0:00:40]}  Kxd5 {[%clk 0:00:08]} 42. Rh4 {[%clk 0:00:40]}  e5 {[%clk 0:00:04]} 43. Rb4 {[%clk 0:00:40]} 1-0


[Site "https://www.chess.com"]

[Event "Titled Tuesday Blitz February 07 Early 2023"]
[White "Vokhidov, Shamsiddin"]
[Black "Alex_Sahakyan2006"]
[WhiteFideId "14204223"]
[WhiteElo "2586"]
[BlackElo "2712"]
[Result "0-1"]
[Round "06"]
[TimeControl "180+2"]
[Date "2023.02.07"]
[WhiteClock "0:00:29"]
[BlackClock "0:00:08"]

1. a4 {[%clk 0:03:00]}  e5 {[%clk 0:02:58]} 2. e4 {[%clk 0:03:00]}  Nf6 {[%clk 0:02:57]} 3. Nc3 {[%clk 0:02:59]}  Bb4 {[%clk 0:02:57]} 4. Nf3 {[%clk 0:02:58]}  Nc6 {[%clk 0:02:53]} 5. Nd5 {[%clk 0:02:55]}  Bc5 {[%clk 0:02:45]} 6. c3 {[%clk 0:02:48]}  Nxe4 {[%clk 0:02:29]} 7. d4 {[%clk 0:02:48]}  exd4 {[%clk 0:02:28]} 8. Bd3 {[%clk 0:02:48]}  O-O {[%clk 0:01:55]} 9. O-O {[%clk 0:02:34]}  f5 {[%clk 0:01:48]} 10. cxd4 {[%clk 0:02:30]}  Be7 {[%clk 0:01:32]} 11. Re1 {[%clk 0:02:25]}  d6 {[%clk 0:01:24]} 12. Bxe4 {[%clk 0:02:14]}  fxe4 {[%clk 0:01:25]} 13. Rxe4 {[%clk 0:02:15]}  Bf5 {[%clk 0:01:25]} 14. Re1 {[%clk 0:02:12]}  Bf6 {[%clk 0:00:34]} 15. Qb3 {[%clk 0:02:09]}  Kh8 {[%clk 0:00:33]} 16. Nxf6 {[%clk 0:01:22]}  Qxf6 {[%clk 0:00:34]} 17. Qxb7 {[%clk 0:01:22]}  Nxd4 {[%clk 0:00:30]} 18. Nxd4 {[%clk 0:01:21]}  Qxd4 {[%clk 0:00:31]} 19. Be3 {[%clk 0:01:19]}  Qg4 {[%clk 0:00:24]} 20. f3 {[%clk 0:01:03]}  Qg6 {[%clk 0:00:24]} 21. Bc5 {[%clk 0:00:51]}  dxc5 {[%clk 0:00:20]} 22. Qxc7 {[%clk 0:00:45]}  h6 {[%clk 0:00:15]} 23. Qxc5 {[%clk 0:00:44]}  Rac8 {[%clk 0:00:15]} 24. Qb4 {[%clk 0:00:38]}  Bh3 {[%clk 0:00:09]} 25. Re2 {[%clk 0:00:38]}  Rxf3 {[%clk 0:00:10]} 26. Kh1 {[%clk 0:00:34]}  Qf5 {[%clk 0:00:10]} 27. Rg1 {[%clk 0:00:29]}  Rf1 {[%clk 0:00:07]} 28. gxh3 {[%clk 0:00:30]}  Qf3+ {[%clk 0:00:07]} 29. Rg2 {[%clk 0:00:29]}  Rxg1+ {[%clk 0:00:08]} 30. Kxg1 {[%clk 0:00:29]}  Rc1+ {[%clk 0:00:08]} 0-1


[Site "https://www.chess.com"]